bitfinex/quotes_ETHUSD_20220112
["timestamp","ask_amount","ask_price","bid_price","bid_amount"]
[1642015908621,0.71567385,3376.3,3376.1,1.00695]
[1642015908822,0.71567385,3376.3,3376.1,1.01320266]
[1642015909024,0.71567385,3376.3,3376.2,2.90568423]
[1642015909229,0.04193137,3376.4,3376.3,0.1184]
[1642015909626,0.04193137,3376.4,3376.3,1.12351581]
[1642015909837,0.04193137,3376.4,3376.3,0.12351581]
[1642015912584,0.77337206,3377.1,3376.4,6.7]
[1642015912887,1.5172616,3377.2,3377.0,0.44413]
[1642015913585,1.5172616,3377.2,3377.0,1.18434]
[1642015913781,1.5172616,3377.2,3377.0,2.68102009]
[1642015913978,1.5172616,3377.2,3377.1,1.0]
[1642015914230,0.00113685,3377.4,3377.1,2.46617678]
[1642015914424,0.00113685,3377.4,3377.1,1.56255]
[1642015914633,0.00113685,3377.4,3377.1,0.44415]
[1642015915824,0.00113685,3377.4,3377.2,0.74027]
[1642015918673,0.00113685,3377.4,3377.0,1.39920437]
[1642015918884,1.51839845,3377.4,3376.9,0.1184]
[1642015919078,1.81839845,3377.4,3376.9,0.1184]
[1642015919286,1.81839845,3377.4,3377.0,0.00113684]
[1642015919674,0.7403702,3377.3,3377.0,0.00113684]
[1642015920074,1.5172616,3377.2,3377.0,0.00113684]
[1642015920674,1.8172616,3377.2,3376.9,0.00170527]
[1642015921278,1.5172616,3377.1,3376.9,0.00170527]
[1642015921933,1.5172616,3377.1,3376.9,0.74203527]
[1642015922336,1.5172616,3377.1,3377.0,0.00113684]
[1642015923333,0.00113685,3377.4,3377.0,0.00113684]
[1642015923334,1.5172616,3377.2,3377.0,0.00113684]
[1642015923536,1.5172616,3377.2,3377.1,0.74024]
[1642015924338,1.51839845,3377.4,3377.0,0.00113684]
[1642015924541,1.51839845,3377.4,3377.1,1.48056]
[1642015924736,1.51839845,3377.4,3377.1,0.85868]
[1642015925576,1.51839845,3377.4,3377.1,1.85868]
[1642015925777,1.51839845,3377.4,3377.1,4.50510238]
[1642015926181,1.51839845,3377.4,3377.2,0.74024]
[1642015926381,1.51839845,3377.4,3377.3,9.60052717]
[1642015926580,1.51839845,3377.4,3377.3,10.60052717]
[1642015926785,1.51839845,3377.4,3377.3,4.20052717]
[1642015927481,0.00113685,3377.4,3377.3,4.50052717]
[1642015929924,0.00113685,3377.4,3377.3,0.1184]
[1642015930322,0.00113685,3377.4,3377.3,2.84245313]
[1642015931429,0.00113685,3377.4,3377.3,3.84245313]
[1642015932243,0.00113685,3377.4,3377.3,1.1184]
[1642015932427,0.00113685,3377.4,3377.3,0.1184]
[1642015934483,0.00113685,3377.4,3377.3,2.85410342]
[1642015934878,0.00113685,3377.4,3377.3,3.85410342]
[1642015935076,0.00113685,3377.4,3377.3,1.1184]
[1642015935277,0.00113685,3377.4,3377.3,2.86845816]
[1642015935477,0.00113685,3377.4,3377.3,3.16845816]
[1642015935677,0.00113685,3377.4,3377.3,3.81840075]
[1642015935878,0.00113685,3377.4,3377.3,4.00000075]
[1642015936077,0.00113685,3377.4,3377.3,1.0]
[1642015936277,0.00113685,3377.4,3377.3,1.3]
[1642015936478,1.5172616,3377.8,3377.3,0.3]
[1642015936721,1.5172616,3377.8,3377.4,0.74021]
[1642015936927,0.00284212,3377.7,3377.4,0.74021]
[1642015937323,0.0022737,3377.6,3377.4,0.74021]
[1642015937725,0.00170527,3377.5,3377.4,0.74021]
[1642015937938,0.00170527,3377.5,3377.2,0.1184]
[1642015938325,0.00113685,3377.4,3377.2,0.1184]
[1642015938528,0.00113685,3377.4,3377.0,1.19483684]
[1642015938730,0.00113685,3377.4,3377.0,0.00113684]
[1642015939127,0.00113685,3377.4,3376.9,0.00170527]
[1642015939348,1.5172616,3377.3,3376.8,0.00227369]
[1642015940339,1.5172616,3377.3,3376.9,0.74032]
[1642015940588,1.5172616,3377.3,3377.0,1.48046]
[1642015940784,1.5172616,3377.3,3377.0,1.48159684]
[1642015941189,1.5172616,3377.3,3377.0,0.74143684]
[1642015941392,1.5172616,3377.3,3377.0,0.00113684]
[1642015942182,1.5172616,3377.3,3377.0,0.74146684]
[1642015942580,1.5172616,3377.3,3377.0,0.64146684]
[1642015942781,1.51839845,3377.4,3377.0,0.64146684]
[1642015943182,1.51839845,3377.4,3377.1,2.66495]
[1642015944636,1.5172616,3377.3,3377.1,1.4805]
[1642015945233,2.3324616,3377.3,3377.0,0.74149684]
[1642015946332,2.58877245,3377.2,3377.0,1.48179684]
[1642015946531,2.58877245,3377.2,3377.0,1.92597684]
[1642015947536,1.5172616,3377.3,3377.0,1.92597684]
[1642015947731,1.8172616,3377.3,3377.0,1.92597684]
[1642015947970,1.8172616,3377.3,3377.0,0.74149684]
[1642015948579,1.8172616,3377.3,3377.0,1.18567684]
[1642015949077,1.8172616,3377.3,3377.1,2.22078]
[1642015949276,1.07151085,3377.2,3377.1,2.22078]
[1642015949677,1.07151085,3377.2,3377.0,1.18567684]
[1642015950582,1.07151085,3377.2,3377.1,0.74027]
[1642015953639,1.07151085,3377.2,3377.0,1.18567684]
[1642015954544,1.37151085,3377.2,3377.0,1.18567684]
[1642015954745,1.37151085,3377.2,3377.0,0.00113684]
[1642015954952,0.3,3377.2,3377.0,0.00113684]
[1642015955148,18.2226,3377.3,3376.2,0.00568423]
[1642015955342,0.8626,3377.3,3376.2,0.00568423]
[1642015955578,2.24371488,3377.3,3376.2,0.00568423]
[1642015955788,2.24371488,3377.3,3376.3,1.97962945]
[1642015955990,0.7405351,3376.8,3376.3,1.97962945]
[1642015956189,0.7405351,3376.8,3376.4,0.74501739]
[1642015956190,0.3,3376.7,3376.4,0.74501739]
[1642015956579,0.3,3376.7,3376.5,0.00397896]
[1642015957183,0.7405351,3376.8,3376.5,0.00397896]
[1642015957379,1.51874696,3376.9,3376.6,0.74038]
[1642015957587,1.51874696,3376.9,3376.6,0.85878]
[1642015957796,1.51874696,3376.9,3376.7,0.00284211]
[1642015957983,1.51874696,3376.9,3376.8,0.1184]
[1642015958381,1.51874696,3377.1,3376.8,0.12067369]
[1642015958681,1.51874696,3377.1,3376.9,0.00170527]
[1642015958884,1.51874696,3377.1,3376.9,0.74200527]
[1642015959339,1.51874696,3377.2,3377.0,0.00113684]
[1642015959543,1.51874696,3377.2,3377.0,1.18561684]
[1642015959940,1.51874696,3377.2,3377.0,1.92589684]
[1642015961148,1.51874696,3377.2,3377.1,1.20298411]
[1642015961544,1.51874696,3377.2,3377.1,2.20298411]
[1642015961961,1.51874696,3377.2,3377.1,4.94330973]
[1642015962158,1.51874696,3377.3,3377.1,4.94330973]
[1642015962342,1.51874696,3377.3,3377.2,0.74021]
[1642015963199,0.00113685,3377.4,3377.2,0.74021]
[1642015963380,0.00113685,3377.4,3377.2,0.85861]
[1642015963581,0.00113685,3377.4,3377.2,1.30272]
[1642015963898,0.00113685,3377.4,3377.2,0.1184]
[1642015964081,0.00113685,3377.4,3377.2,1.1184]
[1642015965592,2.2792573,3377.4,3377.2,1.1184]
[1642015965786,2.2792573,3377.4,3377.3,0.74023]
[1642015966282,2.2792573,3377.4,3377.2,1.1184]
[1642015966481,1.51836741,3377.3,3377.2,1.1184]
[1642015967724,1.51836741,3377.3,3377.2,1.0]
[1642015967923,1.51836741,3377.3,3377.0,0.74147684]
[1642015968641,1.51836741,3377.2,3377.0,0.74147684]
[1642015971983,2.25871401,3377.3,3377.0,0.74147684]
[1642015973589,1.51836741,3377.3,3377.0,0.74147684]
[1642015973798,0.74143375,3377.4,3377.0,0.74147684]
[1642015973799,2.88823315,3377.2,3377.0,0.74147684]
[1642015975448,1.81836741,3377.2,3377.0,0.74147684]
[1642015975631,1.81836741,3377.2,3377.0,0.00113684]
[1642015975632,8.01234117,3377.1,3377.0,0.00113684]
[1642015976135,8.01234117,3377.1,3376.2,0.00568423]
[1642015976534,8.01234117,3377.1,3376.0,0.00682108]
[1642015976736,2.221635,3376.7,3376.0,0.00682108]
[1642015976929,1.48109,3376.7,3376.0,0.00682108]
[1642015977130,1.48109,3376.7,3376.2,1.4809]
[1642015977531,1.48109,3376.7,3376.3,0.00511581]
[1642015977734,3.51858375,3376.6,3376.3,0.00511581]
[1642015977984,1.4811753,3376.5,3376.1,0.00625266]
[1642015978185,1.4811753,3376.5,3376.0,0.00682108]
[1642015978186,1.7297753,3376.5,3376.0,0.00682108]
[1642015978590,2.76306312,3376.4,3376.0,0.00682108]
[1642015978793,1.7297753,3376.5,3376.0,0.00682108]
[1642015979390,1.7297753,3376.5,3375.9,0.0073895]
[1642015980195,0.3,3376.4,3375.9,0.0073895]
[1642015980399,0.7406038,3376.2,3376.0,0.74055]
[1642015980595,1.36986574,3376.6,3376.0,0.74055]
[1642015980805,1.66986574,3376.6,3376.1,0.00625266]
[1642015980997,1.36986574,3376.6,3376.1,0.00625266]
[1642015981212,1.36986574,3376.6,3376.2,0.1184]
[1642015981426,1.36986574,3376.6,3376.5,7.08827371]
[1642015981608,1.36986574,3376.6,3376.5,8.08827371]
[1642015981837,1.36986574,3376.6,3376.5,1.12237896]
[1642015982040,1.36986574,3376.6,3376.5,0.12237896]
[1642015982638,1.36986574,3376.6,3376.5,0.86267896]
[1642015983139,1.36986574,3376.6,3376.5,4.21267896]
[1642015983541,1.51971047,3376.7,3376.5,5.21267896]
[1642015983741,1.51971047,3376.7,3376.6,4.0]
[1642015984058,1.51971047,3376.7,3376.6,4.00341054]
[1642015984543,1.51971047,3376.7,3376.6,4.30341054]
[1642015985140,1.51971047,3376.7,3376.6,1.30341054]
[1642015985578,1.51971047,3376.7,3376.6,1.00341054]
[1642015985976,1.51971047,3376.7,3376.6,1.12181054]
[1642015986178,1.51971047,3376.7,3376.6,3.12181054]
[1642015986477,1.51971047,3376.7,3376.6,4.12181054]
[1642015986880,1.51971047,3376.7,3376.6,1.12181054]
[1642015987076,1.51971047,3376.7,3376.6,0.12181054]
[1642015987277,1.51971047,3376.7,3376.6,1.12181054]
[1642015987883,1.51971047,3376.7,3376.6,0.12181054]
[1642015988080,1.51971047,3376.7,3376.6,1.12181054]
[1642015988282,1.51971047,3376.7,3376.6,0.12181054]
[1642015988483,1.51971047,3376.7,3376.6,1.12181054]
[1642015989085,1.51971047,3376.7,3376.6,6.57181054]
[1642015990038,1.51971047,3376.7,3376.6,1.12181054]
[1642015990438,1.51971047,3376.7,3376.6,0.12181054]
[1642015990637,1.51971047,3376.7,3376.6,1.12181054]
[1642015991042,1.51971047,3376.7,3376.6,3.82181054]
[1642015991442,1.51971047,3376.7,3376.6,1.00341054]
[1642015991639,1.51971047,3376.7,3376.6,0.00341054]
[1642015993080,1.51971047,3376.7,3376.6,3.25341054]
[1642015993680,1.51971047,3376.7,3376.6,4.25341054]
[1642015995087,1.51971047,3376.7,3376.6,7.82181054]
[1642015995488,0.00113685,3377.4,3377.0,0.44411]
[1642015995790,0.00113685,3377.4,3377.2,0.74009]
[1642015995988,0.00113685,3377.4,3377.2,1.58349]
[1642015996188,2.88907402,3378.8,3377.2,1.85584935]
[1642015996387,1.218,3378.8,3377.3,1.2069]
[1642015996736,0.00568424,3378.2,3378.0,1.47997]
[1642015996932,0.00568424,3378.2,3378.1,1.2963397]
[1642015997142,2.88907402,3378.7,3378.1,1.2963397]
[1642015997332,0.7399999,3378.8,3378.1,1.2963397]
[1642015997333,0.7399999,3378.8,3378.1,2.33524072]
[1642015997533,0.00795793,3378.6,3378.1,2.33524072]
[1642015997934,0.00738951,3378.5,3378.1,2.33524072]
[1642015998135,0.00738951,3378.5,3378.3,0.73999]
[1642015998435,0.00682108,3378.4,3378.3,0.444]
[1642015999236,0.00682108,3378.4,3377.8,2.60972]
[1642015999435,0.00682108,3378.4,3377.7,0.1184]
[1642015999647,0.01837441,3378.3,3376.9,1.1537]
[1642015999840,0.74031,3378.1,3377.1,1.13976111]
[1642016000035,0.3,3378.1,3377.1,1.13976111]
[1642016000236,0.00454739,3378.0,3377.2,1.14377042]
[1642016000515,0.740282,3377.7,3377.2,0.74026]
[1642016000712,1.51906784,3377.2,3377.1,1.58393111]
[1642016000917,1.51906784,3377.2,3377.1,2.58393111]
[1642016002019,1.51906784,3377.2,3377.1,3.32418111]
[1642016002614,1.51906784,3377.3,3377.1,3.32418111]
[1642016003018,1.51906784,3377.3,3377.2,1.48027]
[1642016004023,0.00113685,3377.4,3377.2,2.48027]
[1642016004430,0.00113685,3377.4,3377.3,5.64006]
[1642016004632,0.00113685,3377.4,3377.3,6.64006]
[1642016005831,0.00113685,3377.4,3377.3,1.74006]
[1642016006130,0.00113685,3377.4,3377.3,4.69006]
[1642016006332,0.00113685,3377.4,3377.3,1.74006]
[1642016006735,0.00113685,3377.4,3377.3,0.1184]
[1642016006934,0.00113685,3377.4,3377.1,1.92455]
[1642016007134,0.99823685,3377.4,3377.0,0.00113684]
[1642016007340,1.29823685,3377.4,3377.0,0.00113684]
[1642016007532,1.29823685,3377.4,3376.7,0.00284211]
[1642016007733,5.11109978,3377.3,3376.7,0.00284211]
[1642016007978,18.76557278,3377.2,3376.7,0.00284211]
[1642016008178,18.76557278,3377.2,3376.3,0.74558581]
[1642016008379,0.3,3377.3,3376.3,0.74047]
[1642016008582,1.04092084,3377.2,3376.4,0.00454739]
[1642016008785,3.01911245,3376.8,3376.4,0.00454739]
[1642016008986,17.36,3376.6,3376.4,0.00454739]
[1642016009184,1.0009,3376.6,3376.0,0.00682108]
[1642016009389,18.6609,3376.6,3376.0,0.00682108]
[1642016009583,0.84699322,3376.5,3375.7,0.00852635]
[1642016009787,4.66762022,3376.5,3375.7,0.00852635]
[1642016009993,0.740674,3376.2,3375.7,0.00852635]
[1642016010191,2.88982388,3376.1,3375.7,0.00852635]
[1642016010392,0.6859,3376.2,3375.7,0.00852635]
[1642016010586,18.0459,3376.2,3375.5,0.0096632]
[1642016010786,3.31482388,3376.1,3374.8,0.01364216]
[1642016010988,1.15035711,3375.4,3374.9,0.1184]
[1642016011190,1.15035711,3375.4,3374.1,3.86056251]
[1642016011191,6.7,3375.2,3374.0,2.52569301]
[1642016011488,3.31652915,3375.1,3374.3,0.00284212]
[1642016011751,0.72670527,3375.1,3374.3,0.00284212]
[1642016011943,0.7410257,3374.7,3374.3,0.00284212]
[1642016012142,2.0269257,3374.7,3373.9,0.00511581]
[1642016012342,0.3,3374.6,3373.9,0.00511581]
[1642016013143,0.7410247,3374.4,3373.9,0.00511581]
[1642016013346,3.63227336,3374.4,3373.9,0.00511581]
[1642016013550,0.3,3374.3,3373.9,0.00511581]
[1642016013750,0.3,3374.3,3373.7,0.00625266]
[1642016014050,0.3,3374.3,3373.7,1.261598]
[1642016014449,4.22600249,3374.6,3373.8,0.00568424]
[1642016014753,1.60422084,3374.6,3373.8,0.45027424]
[1642016014952,1.04092084,3374.2,3373.8,0.45027424]
[1642016015157,1.04092084,3374.2,3373.9,0.00511581]
[1642016016180,4.1666949,3374.6,3373.9,0.00511581]
[1642016016382,3.4257232,3374.6,3373.9,0.00511581]
[1642016016781,0.5633,3374.6,3373.9,0.00511581]
[1642016016984,0.3,3374.5,3373.9,0.00511581]
[1642016017186,0.3,3374.5,3374.0,0.44456]
[1642016017484,1.04092084,3374.5,3374.1,0.00397896]
[1642016017883,1.34092084,3374.5,3374.1,0.00397896]
[1642016018284,0.3,3374.5,3374.1,0.00397896]
[1642016018485,17.36,3374.6,3374.1,0.00397896]
[1642016018684,0.3057,3374.5,3374.1,0.00397896]
[1642016018888,1.0036,3374.5,3373.9,0.00511581]
[1642016019235,1.3036,3374.5,3373.9,0.00511581]
[1642016019633,0.7410442,3374.3,3373.9,0.00511581]
[1642016020933,2.87851622,3374.2,3373.9,0.00511581]
[1642016021737,1.3524442,3374.3,3373.9,0.00511581]
[1642016022333,1.41617742,3374.2,3373.6,0.00682108]
[1642016022533,1.41617742,3374.2,3373.5,0.32522108]
[1642016022735,1.41617742,3374.2,3373.5,1.1184]
[1642016022981,0.00284212,3374.1,3373.5,0.1184]
[1642016023377,0.00227369,3374.0,3373.5,0.1184]
[1642016023578,2.84720421,3374.0,3373.5,0.1184]
[1642016023780,0.00170527,3373.9,3373.5,0.1184]
[1642016023982,0.00170527,3373.9,3373.2,1.88922]
[1642016023983,0.00170527,3373.9,3373.3,0.1184]
[1642016024182,0.00113684,3373.8,3373.3,0.1184]
[1642016024382,0.00113684,3373.8,3373.4,0.00113685]
[1642016024588,0.7412032,3373.7,3373.4,0.00113685]
[1642016024783,8.12786374,3373.5,3373.2,0.0022737]
[1642016024983,17.36,3373.4,3372.9,0.00397897]
[1642016025182,17.36,3373.1,3372.9,0.00397897]
[1642016025586,7.125,3373.0,3372.9,0.00397897]
[1642016025782,28.18259852,3373.0,3372.9,0.00397897]
[1642016025986,21.64720039,3373.0,3372.9,0.00397897]
[1642016026181,21.64720039,3373.0,3372.1,0.00852635]
[1642016026382,0.425,3372.9,3372.1,0.00852635]
[1642016026583,3.64708173,3373.2,3372.1,0.00852635]
[1642016026584,0.1865,3373.2,3372.1,0.00852635]
[1642016026833,1.42786374,3373.5,3372.2,1.65581986]
[1642016027039,0.3,3373.5,3372.4,0.74119]
[1642016027331,1.5727686,3374.1,3372.5,0.12465266]
[1642016027831,0.00170527,3373.9,3373.2,1.48004635]
[1642016028037,0.00170527,3373.9,3373.2,2.90490929]
[1642016028240,0.00113684,3373.8,3373.3,3.22497365]
[1642016028433,0.00113684,3373.8,3373.3,4.27982351]
[1642016028633,0.00227369,3374.0,3373.3,2.27982351]
[1642016029132,0.8477686,3374.6,3373.3,2.27982351]
[1642016029133,0.00170527,3373.9,3373.5,0.44451]
[1642016029337,0.00170527,3373.9,3373.6,0.1184]
[1642016029537,0.00113684,3373.8,3373.5,0.4184]
[1642016029935,0.00511581,3374.5,3373.5,0.4184]
[1642016030137,0.00511581,3374.5,3373.5,2.76264352]
[1642016030336,0.00454739,3374.4,3373.5,2.76264352]
[1642016030581,0.00454739,3374.4,3373.6,1.0]
[1642016030787,0.00397896,3374.3,3373.8,1.26339503]
[1642016030981,0.00397896,3374.3,3373.6,1.0]
[1642016031181,0.00341054,3374.2,3373.5,1.3]
[1642016031580,0.00284212,3374.1,3373.5,1.3]
[1642016031788,0.00284212,3374.1,3373.6,3.01493754]
[1642016031984,4.6964686,3374.9,3373.6,3.01493754]
[1642016031985,0.8477686,3374.9,3373.8,7.14457]
[1642016032181,0.8477686,3374.9,3373.9,5.79822494]
[1642016032380,0.00454739,3374.8,3373.9,6.09822494]
[1642016032583,0.00454739,3374.8,3374.0,0.05484986]
[1642016032781,0.00397897,3374.7,3374.6,1.19468232]
[1642016032982,0.00397897,3374.7,3374.6,0.4184]
[1642016033386,0.00397897,3374.7,3374.6,0.1184]
[1642016033989,0.00397897,3374.7,3374.4,0.1184]
[1642016034238,0.00397897,3374.7,3374.3,1.0]
[1642016034436,0.00341054,3374.6,3374.3,1.0]
[1642016034637,0.00341054,3374.6,3373.7,1.00170527]
[1642016034843,0.00284212,3374.5,3373.7,1.00170527]
[1642016035036,0.00284212,3374.5,3373.7,0.00170527]
[1642016035237,0.0022737,3374.4,3373.7,0.00170527]
[1642016035536,0.00170527,3374.3,3373.9,1.39069341]
[1642016035942,0.00113685,3374.2,3373.9,1.39069341]
[1642016036238,0.00397897,3374.7,3373.9,1.39069341]
[1642016036637,0.00341054,3374.6,3373.9,1.39069341]
[1642016037037,0.00284212,3374.5,3373.9,2.39069341]
[1642016037437,0.0022737,3374.4,3373.9,1.39069341]
[1642016037638,0.0022737,3374.4,3373.9,2.39069341]
[1642016037987,0.00170527,3374.3,3373.9,2.39069341]
[1642016038187,0.00170527,3374.3,3373.9,1.39069341]
[1642016038388,18.5077686,3374.8,3373.9,1.39069341]
[1642016038389,0.00113685,3374.2,3373.9,1.39069341]
[1642016038594,0.00113685,3374.2,3373.9,1.83524341]
[1642016038788,0.85174757,3374.7,3373.9,1.83524341]
[1642016038990,0.85174757,3374.7,3373.9,2.83524341]
[1642016039191,0.00341054,3374.6,3373.9,2.83524341]
[1642016039595,0.00284212,3374.5,3374.1,0.74087]
[1642016039994,0.0022737,3374.4,3374.1,0.74087]
[1642016040395,0.00170527,3374.3,3374.1,0.74087]
[1642016040795,0.00113685,3374.2,3374.1,0.74087]
[1642016042427,0.00113685,3374.2,3374.0,1.0]
[1642016042628,0.00113685,3374.2,3374.0,1.16050684]
[1642016043028,0.00113685,3374.2,3374.0,2.90143684]
[1642016044135,0.00113685,3374.2,3374.0,1.74093]
[1642016044333,0.00113685,3374.2,3374.0,1.0]
[1642016044536,0.00113685,3374.2,3373.9,2.83524341]
[1642016044933,0.00113685,3374.2,3374.0,1.48172]
[1642016045136,0.00113685,3374.2,3374.0,2.48172]
[1642016047882,0.00113685,3374.2,3373.8,2.00744]
[1642016048088,0.00113685,3374.2,3373.8,1.0]
[1642016048089,0.0058287,3374.1,3373.8,1.0]
[1642016048286,0.00113685,3374.2,3373.8,1.0]
[1642016049094,2.54185281,3374.0,3373.8,1.74094]
[1642016049839,0.00113685,3374.2,3373.8,1.74094]
[1642016050040,0.00113685,3374.2,3373.9,0.44458]
[1642016050441,0.00113685,3374.2,3373.9,3.37881096]
[1642016050741,0.00113685,3374.2,3374.0,1.0]
[1642016051144,0.00113685,3374.2,3374.0,1.74086]
[1642016052342,0.00113685,3374.2,3374.0,3.96298]
[1642016052983,0.00113685,3374.2,3374.0,2.96298]
[1642016053184,0.00113685,3374.2,3374.0,5.83459485]
[1642016053790,0.00113685,3374.2,3374.1,9.13069048]
[1642016054211,0.00113685,3374.2,3374.1,9.43069048]
[1642016054392,0.00113685,3374.2,3374.1,10.43069048]
[1642016055993,0.00113685,3374.2,3374.1,7.5684]
[1642016056395,0.00113685,3374.2,3374.1,1.4184]
[1642016057032,0.00113685,3374.2,3374.1,1.3]
[1642016058835,0.00113685,3374.2,3374.1,1.0]
[1642016059441,0.00113685,3374.2,3374.1,4.9]
[1642016062292,0.00113685,3374.2,3374.1,7.71371851]
[1642016062695,0.00113685,3374.2,3374.1,4.9]
[1642016063393,0.00113685,3374.2,3374.1,1.0]
[1642016063894,0.00113685,3374.2,3374.1,2.4816]
[1642016065235,0.00113685,3374.2,3374.1,5.1816]
[1642016065834,0.00113685,3374.2,3374.1,5.4816]
[1642016066636,0.00113685,3374.2,3374.1,2.7816]
[1642016066836,0.00113685,3374.2,3374.1,5.63193993]
[1642016067038,0.00113685,3374.2,3374.1,2.7816]
[1642016067244,0.00113685,3374.2,3374.1,7.4816]
[1642016068285,0.00113685,3374.2,3374.1,2.7816]
[1642016069290,0.00113685,3374.2,3374.1,6.1816]
[1642016071194,1.50651391,3374.6,3374.5,1.12203347]
[1642016071599,1.50651391,3374.6,3374.5,4.10985329]
[1642016071839,1.50651391,3374.6,3374.5,1.42203347]
[1642016072039,1.50651391,3374.6,3374.5,2.84703347]
[1642016072338,2.27860175,3374.9,3374.7,0.44435]
[1642016072545,2.27860175,3374.9,3374.8,5.2684]
[1642016072737,2.27860175,3374.9,3374.8,5.5684]
[1642016073138,5.80414185,3376.2,3374.8,6.5684]
[1642016073139,2.27860175,3375.3,3374.8,6.5684]
[1642016073437,2.27860175,3375.3,3375.2,1.41767863]
[1642016073838,2.28599126,3375.3,3375.1,1.4812]
[1642016074039,5.80011831,3375.2,3375.1,0.7406]
[1642016074238,5.80693939,3375.2,3374.2,4.9243]
[1642016074446,6.10693939,3375.2,3374.6,0.88886]
[1642016074642,6.10693939,3375.2,3374.2,4.9243]
[1642016074643,0.00625266,3375.1,3374.2,4.9243]
[1642016074844,0.00625266,3375.1,3374.3,0.74086]
[1642016075046,0.12408424,3375.0,3374.3,2.26150725]
[1642016075244,0.00568424,3375.0,3374.3,2.26150725]
[1642016075494,0.00511581,3374.9,3374.5,1.49966234]
[1642016075682,0.00511581,3374.9,3374.5,2.98121234]
[1642016075982,0.00454739,3374.8,3374.7,0.74077]
[1642016085189,0.00454739,3374.8,3374.6,0.44447]
[1642016085392,0.03120424,3374.7,3374.4,0.7409]
[1642016085595,0.03518321,3374.7,3374.4,0.7409]
[1642016085791,0.00341054,3374.6,3374.4,0.7409]
[1642016086090,0.00284212,3374.5,3374.4,0.7409]
[1642016086292,0.00284212,3374.5,3374.4,6.78173]
[1642016086741,0.00284212,3374.5,3374.4,7.90013]
[1642016086945,0.00284212,3374.5,3374.4,9.33665392]
[1642016087646,0.00284212,3374.5,3374.4,10.75378876]
[1642016088252,0.00284212,3374.5,3374.4,11.17878876]
[1642016088444,1.52042921,3374.8,3374.6,1.11083]
[1642016088645,1.52042921,3374.8,3374.7,7.2434]
[1642016088847,2.27860175,3375.0,3374.7,7.2434]
[1642016089044,2.27860175,3375.0,3374.7,8.9838757]
[1642016089243,0.00227369,3374.9,3374.8,3.52143]
[1642016089445,2.28053677,3375.2,3375.0,1.9125549]
[1642016089749,2.28224204,3375.2,3375.1,5.0905]
[1642016089950,3.03813567,3375.5,3375.1,8.2839]
[1642016090148,3.03813567,3375.5,3375.2,0.1184]
[1642016090348,0.00113685,3375.4,3375.3,0.425]
[1642016090590,3.79766959,3376.0,3375.7,0.74039]
[1642016090800,3.79766959,3376.0,3375.9,1.32573553]
[1642016090993,8.00582444,3376.5,3375.9,1.32573553]
[1642016090994,3.79766959,3376.2,3375.9,1.32573553]
[1642016091197,3.79766959,3376.2,3375.9,2.32573553]
[1642016092096,3.79766959,3376.2,3375.9,2.69593553]
[1642016092298,0.00511581,3376.3,3376.0,0.74039]
[1642016092497,0.00511581,3376.3,3376.0,1.74039]
[1642016092696,0.00454739,3376.2,3376.0,1.74039]
[1642016092895,0.00454739,3376.2,3376.0,0.74039]
[1642016093096,0.00397896,3376.1,3376.0,0.74039]
[1642016093697,0.00397896,3376.1,3376.0,2.58680962]
[1642016094097,0.00397896,3376.1,3376.0,3.58680962]
[1642016094555,0.00397896,3376.1,3376.0,2.4464765]
[1642016095154,0.00397896,3376.1,3376.0,1.4464765]
[1642016095355,0.00397896,3376.1,3376.0,2.4464765]
[1642016095554,0.00397896,3376.1,3376.0,3.1869565]
[1642016098287,0.00397896,3376.1,3376.0,2.1869565]
[1642016098593,0.00397896,3376.1,3375.7,0.74039]
[1642016098785,0.00397896,3376.1,3375.5,2.96209]
[1642016098987,0.00341054,3376.0,3375.3,5.85112]
[1642016099188,0.00341054,3376.0,3375.3,1.95902]
[1642016099388,0.00284212,3375.9,3375.3,1.95902]
[1642016099585,0.00284212,3375.9,3375.3,2.10137978]
[1642016099788,1.51646508,3375.6,3375.3,2.10137978]
[1642016099987,1.51646508,3375.6,3375.5,0.7406]
[1642016100186,1.51646508,3375.6,3375.5,1.48117]
[1642016100387,1.51760193,3375.6,3375.5,1.48117]
[1642016102043,0.00113685,3375.6,3375.5,1.48117]
[1642016104743,0.00113685,3375.6,3375.5,4.93117]
[1642016105144,0.00113685,3375.6,3375.5,5.93117]
[1642016105343,0.00113685,3375.6,3375.5,6.04957]
[1642016106789,0.00113685,3375.6,3375.5,9.09957]
[1642016107791,1.51646508,3376.2,3375.6,6.7]
[1642016107993,1.51646508,3376.2,3375.9,1.04031]
[1642016108190,0.00284211,3376.1,3376.0,0.425]
[1642016108690,0.00284211,3376.1,3376.0,7.125]
[1642016109089,0.00284211,3376.1,3376.0,9.60559]
[1642016109349,1.35750376,3376.2,3376.1,6.7]
[1642016109549,2.27536567,3376.5,3376.2,7.0]
[1642016109751,2.27536567,3377.0,3376.5,6.7]
[1642016109953,2.27536567,3377.0,3376.6,0.5434]
[1642016110152,2.27536567,3377.0,3376.6,1.5434]
[1642016110355,2.27536567,3377.0,3376.8,0.74007]
[1642016110552,2.27536567,3377.0,3376.9,6.6684]
[1642016110750,2.27536567,3377.0,3376.9,3.08286557]
[1642016110950,2.28048149,3377.0,3376.9,2.50744753]
[1642016111457,0.00511582,3377.0,3376.9,2.50744753]
[1642016111655,0.00511582,3377.0,3376.9,0.1184]
[1642016111852,0.00511582,3377.0,3376.9,1.1184]
[1642016112054,0.00511582,3377.0,3376.9,2.73089389]
[1642016112253,0.00511582,3377.0,3376.9,5.95195894]
[1642016112554,2.27536567,3377.4,3377.2,0.37001]
[1642016112755,2.27536567,3377.4,3377.3,3.51950865]
[1642016112990,2.27536567,3377.4,3377.3,1.903112]
[1642016113290,2.27536567,3377.4,3377.3,1.74001]
[1642016113690,2.27536567,3377.4,3377.3,0.74001]
[1642016113892,2.27536567,3377.4,3377.3,1.74001]
[1642016114292,0.00284211,3377.5,3377.3,4.60588382]
[1642016114493,0.00284211,3377.5,3377.4,9.94088159]
[1642016115095,0.00284211,3377.5,3377.4,3.89088159]
[1642016115296,0.00284211,3377.5,3377.4,1.0]
[1642016115692,0.00284211,3377.5,3377.4,1.24997525]
[1642016116940,0.00284211,3377.5,3377.4,4.10117439]
[1642016117140,0.00284211,3377.5,3377.4,5.10117439]
[1642016117540,0.00284211,3377.5,3377.4,5.39296104]
[1642016117740,0.00284211,3377.5,3377.4,9.34296104]
[1642016118444,0.00284211,3377.5,3377.4,5.09296104]
[1642016118645,0.00284211,3377.5,3377.4,9.8897504]
[1642016118844,0.00284211,3377.5,3377.4,6.94997525]
[1642016119044,0.00284211,3377.5,3377.4,10.1080971]
[1642016119354,2.27536567,3378.2,3377.8,1.84971]
[1642016119545,2.27536567,3378.2,3377.8,2.10983]